fUSD/lending_fUSD_20250824
["ID","MTS","AMOUNT","RATE_DAILY","PERIOD"]
[381123432,1756056637391,-200.0,0.00019882,2]
[381123433,1756056637400,-200.0,0.00019882,2]
[381123434,1756056637409,-200.0,0.00019882,2]
[381123435,1756056637419,-200.0,0.00019882,2]
[381123436,1756056637432,-200.0,0.00019882,2]
[381123437,1756056637442,-200.0,0.00019882,2]
[381123438,1756056637451,-200.80584833,0.00019882,2]
[381123439,1756056637461,-200.0,0.00019882,2]
[381123440,1756056637470,-200.0,0.00019882,2]
[381123441,1756056637479,-200.0,0.00019882,2]
[381123442,1756056637489,-188.0,0.00019882,2]
[381123443,1756056637502,-500.0,0.00019882,2]
[381123444,1756056637513,-200.0,0.00019882,2]
[381123445,1756056637524,-500.0,0.00019882,2]
[381123446,1756056637533,-150.0,0.00019882,2]
[381123447,1756056637543,-596.0,0.00019882,2]
[381123448,1756056637552,-200.0,0.00019882,2]
[381123450,1756056637561,-200.0,0.00019882,2]
[381123452,1756056637570,-150.0,0.00019883,4]
[381123454,1756056637580,-158.3634189,0.00019894,4]
[381123456,1756056637589,-150.0,0.00019894,4]
[381123458,1756056637599,-150.0,0.00019894,4]
[381123459,1756056637608,-150.0,0.00019894,4]
[381123460,1756056637617,-150.0,0.00019894,4]
[381123461,1756056637627,-150.0,0.00019894,4]
[381123462,1756056637637,-1000.0,0.000199,2]
[381123464,1756056637647,-150.0,0.00019909,4]
[381123465,1756056637656,-150.0,0.00019911,4]
[381123466,1756056637665,-150.0,0.00019913,4]
[381123467,1756056637674,-150.0,0.00019915,4]
[381123468,1756056637683,-158.3634189,0.00019916,4]
[381123469,1756056637692,-150.0,0.00019916,4]
[381123470,1756056637701,-150.0,0.00019925,4]
[381123471,1756056637710,-158.3634189,0.00019937,4]
[381123472,1756056637719,-150.0,0.00019945,4]
[381123473,1756056637729,-150.0,0.00019947,4]
[381123474,1756056637738,-150.0,0.00019951,4]
[381123475,1756056637747,-150.0,0.00019955,4]
[381123476,1756056637757,-158.3634189,0.00019959,4]
[381123477,1756056637767,-150.0,0.00019963,4]
[381123478,1756056637776,-150.0,0.00019969,4]
[381123479,1756056637785,-150.0,0.00019979,4]
[381123480,1756056637794,-158.3634189,0.0001998,4]
[381123481,1756056637804,-150.0,0.00019983,4]
[381123482,1756056637814,-150.0,0.00019996,4]
[381123483,1756056637823,-150.0,0.00019996,4]
[381123484,1756056637832,-150.0,0.0002,4]
[381123485,1756056637842,-290.04871624,0.0002,2]
[381123486,1756056637851,-158.3634189,0.00020002,4]
[381123487,1756056637860,-150.0,0.00020011,4]
[381123488,1756056637869,-150.0,0.00020012,4]
[381123489,1756056637878,-150.0,0.00020015,4]
[381123490,1756056637888,-150.0,0.00020018,4]
[381123491,1756056637897,-158.3634189,0.00020023,4]
[381123492,1756056637906,-150.0,0.00020025,4]
[381123493,1756056637916,-150.0,0.00020036,4]
[381123494,1756056637925,-150.0,0.00020043,4]
[381123495,1756056637934,-158.3634189,0.00020045,4]
[381123496,1756056637944,-150.0,0.00020045,4]
[381123497,1756056637953,-150.0,0.00020046,4]
[381123498,1756056637963,-150.0,0.00020049,4]
[381123499,1756056637971,-158.3634189,0.00020066,4]
[381123500,1756056637980,-150.0,0.00020067,4]
[381123501,1756056637990,-150.0,0.00020074,4]
[381123502,1756056637999,-150.0,0.00020081,4]
[381123503,1756056638009,-1000.0,0.00020085,2]
[381123504,1756056638018,-158.3634189,0.00020088,4]
[381123505,1756056638027,-150.0,0.00020091,4]
[381123506,1756056638036,-150.0,0.00020097,4]
[381123507,1756056638046,-150.0,0.00020097,4]
[381123508,1756056638055,-150.0,0.00020106,4]
[381123509,1756056638064,-158.3634189,0.00020109,4]
[381123510,1756056638073,-150.0,0.0002011,4]
[381123511,1756056638082,-150.0,0.00020116,4]
[381123512,1756056638091,-150.0,0.00020119,4]
[381123513,1756056638100,-150.0,0.00020121,4]
[381123514,1756056638109,-158.3634189,0.00020131,4]
[381123515,1756056638118,-150.0,0.00020131,4]
[381123516,1756056638128,-150.0,0.00020136,4]
[381123517,1756056638138,-150.0,0.00020137,4]
[381123518,1756056638147,-150.0,0.00020138,4]
[381123519,1756056638157,-150.0,0.00020148,4]
[381123521,1756056638167,-158.3634189,0.00020152,4]
[381123523,1756056638176,-500.0,0.00020156,2]
[381123525,1756056638185,-500.0,0.00020156,2]
[381123527,1756056638194,-150.0,0.0002017,4]
[381123529,1756056638204,-150.0,0.00020171,4]
[381123531,1756056638213,-158.3634189,0.00020174,4]
[381123532,1756056638222,-150.0,0.00020181,4]
[381123533,1756056638231,-150.0,0.00020183,4]
[381123534,1756056638241,-182.21,0.00020187,2]
[381123535,1756056638250,-150.0,0.00020193,4]
[381123536,1756056638259,-158.3634189,0.00020195,4]
[381123537,1756056638268,-150.0,0.00020199,4]
[381123538,1756056638278,-150.0,0.00020199,4]
[381123539,1756056638287,-275.0,0.000202,2]
[381123540,1756056638296,-150.0,0.00020202,4]
[381123541,1756056638306,-150.0,0.00020203,4]
[381123542,1756056638315,-150.0,0.00020207,4]
[381123543,1756056638324,-158.3634189,0.00020217,4]
[381123544,1756056638333,-150.0,0.00020223,4]
[381123545,1756056638342,-150.0,0.00020227,4]
[381123546,1756056638352,-150.0,0.00020233,4]
[381123547,1756056638361,-158.3634189,0.00020239,4]
[381123548,1756056638370,-150.0,0.00020249,4]
[381123549,1756056638379,-150.0,0.00020249,4]
[381123550,1756056638390,-150.0,0.00020249,4]
[381123551,1756056638399,-150.0,0.00020249,4]
[381123552,1756056638408,-150.0,0.00020249,4]
[381123553,1756056638418,-150.0,0.00020249,4]
[381123554,1756056638431,-150.0,0.00020249,4]
[381123555,1756056638439,-158.3634189,0.0002026,4]
[381123556,1756056638450,-150.0,0.00020265,4]
[381123557,1756056638459,-150.0,0.00020272,4]
[381123558,1756056638470,-150.0,0.00020275,4]
[381123559,1756056638479,-158.3634189,0.00020282,4]
[381123560,1756056638489,-150.0,0.00020292,4]
[381123561,1756056638499,-150.0,0.00020296,4]
[381123562,1756056638508,-150.0,0.00020297,4]
[381123563,1756056638517,-150.0,0.000203,4]
[381123564,1756056638527,-150.0,0.000203,4]
[381123565,1756056638536,-158.3634189,0.00020303,4]
[381123566,1756056638545,-150.0,0.00020305,4]
[381123567,1756056638554,-150.0,0.00020316,4]
[381123568,1756056638563,-150.0,0.00020317,4]
[381123569,1756056638573,-158.3634189,0.00020325,4]
[381123570,1756056638582,-150.0,0.00020327,4]
[381123571,1756056638591,-150.0,0.00020329,4]
[381123572,1756056638600,-1975.142,0.00020335,2]
[381123573,1756056638609,-169.855,0.00020335,2]
[381123574,1756056638618,-158.3634189,0.00020346,4]
[381123575,1756056638627,-160.0,0.00020347,2]
[381123576,1756056638638,-277.35679052,0.00020347,2]
[381123577,1756056638647,-334.5472959,0.00020347,2]
[381123578,1756056638657,-150.0,0.00020351,4]
[381123579,1756056638666,-150.0,0.00020361,4]
[381123580,1756056638676,-150.0,0.00020361,4]
[381123581,1756056638685,-150.0,0.00020363,4]
[381123582,1756056638694,-158.3634189,0.00020368,4]
[381123583,1756056638703,-150.0,0.00020368,4]
[381123584,1756056638712,-150.0,0.00020377,4]
[381123585,1756056638722,-150.0,0.00020379,4]
[381123586,1756056638732,-150.0,0.00020383,4]
[381123587,1756056638740,-150.0,0.00020388,4]
[381123588,1756056638750,-158.3634189,0.00020389,4]
[381123589,1756056638759,-150.0,0.00020392,4]
[381123590,1756056638769,-1004.0,0.000204,2]
[381123591,1756056638779,-1000.0,0.000204,2]
[381123592,1756056638788,-1012.0,0.000204,2]
[381123593,1756056638797,-1000.0,0.000204,2]
[381123594,1756056638807,-150.0,0.00020402,4]
[381123595,1756056638816,-150.0,0.00020402,4]
[381123596,1756056638826,-150.0,0.00020408,4]
[381123597,1756056638836,-158.3634189,0.00020411,4]
[381123598,1756056638846,-150.0,0.00020418,4]
[381123599,1756056638856,-150.0,0.00020424,4]
[381123600,1756056638866,-500.0,0.0002043,2]
[381123601,1756056638875,-452.0,0.0002043,2]
[381123602,1756056638885,-150.0,0.00020431,4]
[381123603,1756056638894,-158.3634189,0.00020432,4]
[381123604,1756056638904,-150.0,0.00020449,4]
[381123605,1756056638913,-150.0,0.00020452,4]
[381123606,1756056638922,-150.0,0.00020453,4]
[381123607,1756056638931,-158.3634189,0.00020454,4]
[381123608,1756056638940,-150.0,0.00020456,4]
[381123609,1756056638950,-150.0,0.00020462,4]
[381123610,1756056638959,-150.0,0.00020474,4]
[381123611,1756056638968,-158.3634189,0.00020475,4]
[381123612,1756056638977,-150.0,0.00020481,4]
[381123613,1756056638987,-150.0,0.00020483,4]
[381123614,1756056638996,-150.0,0.00020486,4]
[381123615,1756056639006,-150.0,0.00020488,4]
[381123616,1756056639015,-158.3634189,0.00020497,4]
[381123617,1756056639025,-150.0,0.00020499,4]
[381123618,1756056639034,-150.0,0.00020503,4]
[381123619,1756056639043,-150.0,0.00020503,4]
[381123620,1756056639053,-150.0,0.00020516,4]
[381123621,1756056639062,-300.0,0.00020517,2]
[381123622,1756056639071,-158.3634189,0.00020518,4]
[381123623,1756056639080,-150.0,0.0002052,4]
[381123624,1756056639089,-150.0,0.0002053,4]
[381123625,1756056639099,-609.76141191,0.00020535,2]
[381123626,1756056639108,-150.0,0.00020535,4]
[381123627,1756056639118,-158.3634189,0.0002054,4]
[381123628,1756056639128,-150.0,0.00020544,4]
[381123629,1756056639138,-2580.51,0.00020547,2]
[381123630,1756056639148,-150.0,0.00020548,4]
[381123631,1756056639158,-150.0,0.00020552,4]
[381123632,1756056639168,-150.0,0.00020554,4]
[381123633,1756056639178,-158.3634189,0.00020562,4]
[381123634,1756056639187,-150.0,0.00020574,4]
[381123635,1756056639197,-150.0,0.00020582,4]
[381123636,1756056639207,-158.3634189,0.00020583,4]
[381123637,1756056639216,-150.0,0.00020583,4]
[381123638,1756056639225,-150.0,0.00020586,4]
[381123639,1756056639235,-150.0,0.00020587,4]
[381123640,1756056639244,-150.0,0.00020589,4]
[381123641,1756056639254,-158.3634189,0.00020605,4]
[381123642,1756056639263,-150.0,0.00020605,4]
[381123643,1756056639272,-150.0,0.00020605,4]
[381123644,1756056639281,-150.0,0.00020605,4]
[381123645,1756056639290,-150.0,0.00020605,4]
[381123646,1756056639299,-150.0,0.00020605,4]
[381123647,1756056639309,-150.0,0.00020615,4]
[381123648,1756056639318,-158.3634189,0.00020626,4]
[381123649,1756056639327,-151.0,0.00020633,2]
[381123650,1756056639336,-150.0,0.00020633,4]
[381123651,1756056639345,-150.0,0.00020635,4]
[381123652,1756056639355,-150.0,0.00020639,4]
[381123653,1756056639364,-150.0,0.00020642,4]
[381123654,1756056639373,-150.0,0.00020647,4]
[381123655,1756056639382,-158.3634189,0.00020648,4]
[381123656,1756056639392,-150.0,0.00020649,4]
[381123657,1756056639402,-150.0,0.00020655,4]
[381123658,1756056639411,-150.0,0.00020666,4]
[381123659,1756056639425,-158.3634189,0.00020669,4]
[381123660,1756056639434,-609.76141186,0.00020677,2]
[381123661,1756056639443,-150.0,0.00020679,4]
[381123662,1756056639453,-150.0,0.0002068,4]
[381123663,1756056639462,-158.3634189,0.00020691,4]
[381123665,1756056639473,-150.0,0.00020691,4]
[381123666,1756056639483,-150.0,0.00020698,4]
[381123667,1756056639492,-500.0,0.00020704,2]
[381123668,1756056639504,-150.0,0.00020706,4]
[381123669,1756056639514,-150.0,0.00020706,4]
[381123671,1756056639523,-150.0,0.00020711,4]
[381123672,1756056639532,-158.3634189,0.00020712,4]
[381123674,1756056639541,-150.0,0.00020716,4]
[381123676,1756056639550,-300.0,0.00020717,2]
[381123677,1756056639559,-522.12552715,0.00020718,2]
[381123678,1756056639567,-150.0,0.00020718,4]
[381123680,1756056639577,-150.0,0.00020723,4]
[381123681,1756056639586,-150.0,0.00020726,4]
[381123683,1756056639595,-16065.88564209,0.00020728,2]
[381123685,1756056639605,-158.3634189,0.00020734,4]
[381123687,1756056639614,-150.0,0.00020742,4]
[381123689,1756056639623,-150.0,0.00020743,4]
[381123691,1756056639632,-150.0,0.00020754,4]
[381123693,1756056639642,-158.3634189,0.00020755,4]
[381123695,1756056639651,-150.0,0.00020757,4]
[381123696,1756056639660,-150.0,0.00020759,4]
[381123698,1756056639670,-150.0,0.00020771,4]
[381123700,1756056639679,-150.0,0.00020774,4]
[381123702,1756056639688,-158.3634189,0.00020777,4]
[381123704,1756056639697,-150.0,0.00020782,4]
[381123706,1756056639706,-150.0,0.00020782,4]
[381123708,1756056639715,-150.0,0.00020795,4]
[381123709,1756056639724,-158.3634189,0.00020798,4]
[381123710,1756056639733,-150.0,0.00020804,4]
[381123711,1756056639742,-150.0,0.00020806,4]
[381123712,1756056639751,-150.0,0.00020808,4]
[381123713,1756056639761,-150.0,0.00020808,4]
[381123714,1756056639769,-150.0,0.0002081,4]
[381123715,1756056639779,-150.0,0.00020816,4]
[381123716,1756056639788,-158.3634189,0.0002082,4]
[381123717,1756056639797,-609.76141186,0.0002082,2]
[381123718,1756056639806,-150.0,0.00020838,4]
[381123719,1756056639815,-158.3634189,0.00020841,4]
[381123720,1756056639823,-150.0,0.00020841,4]
[381123721,1756056639833,-150.0,0.00020847,4]
[381123722,1756056639842,-150.0,0.00020849,4]
[381123723,1756056639851,-150.0,0.00020852,4]
[381123724,1756056639860,-150.0,0.00020858,4]
[381123725,1756056639870,-150.0,0.00020862,4]
[381123726,1756056639879,-158.3634189,0.00020863,4]
[381123727,1756056639889,-150.0,0.00020866,4]
[381123728,1756056639898,-150.0,0.0002087,4]
[381123729,1756056639908,-158.3634189,0.00020884,4]
[381123730,1756056639917,-150.0,0.00020889,4]
[381123731,1756056639927,-150.0,0.00020899,4]
[381123732,1756056639935,-150.0,0.00020901,4]
[381123733,1756056639945,-158.3634189,0.00020906,4]
[381123734,1756056639954,-150.0,0.00020907,4]
[381123735,1756056639963,-150.0,0.00020909,4]
[381123736,1756056639971,-150.0,0.00020909,4]
[381123737,1756056639981,-150.0,0.00020915,4]
[381123738,1756056639990,-150.0,0.00020922,4]
[381123739,1756056639999,-158.3634189,0.00020928,4]
[381123740,1756056640008,-150.0,0.00020933,4]
[381123741,1756056640017,-150.0,0.00020944,4]
[381123742,1756056640027,-158.3634189,0.00020949,4]
[381123743,1756056640037,-150.0,0.00020951,4]
[381123744,1756056640046,-150.0,0.00020952,4]
[381123745,1756056640055,-150.0,0.0002096,4]
[381123746,1756056640064,-150.0,0.0002096,4]
[381123747,1756056640073,-150.0,0.0002096,4]
[381123748,1756056640083,-609.76141186,0.00020962,2]
[381123749,1756056640091,-150.0,0.00020965,4]
[381123750,1756056640101,-158.3634189,0.00020971,4]
[381123751,1756056640110,-150.0,0.00020974,4]
[381123753,1756056640119,-500.0,0.00020978,2]
[381123755,1756056640128,-150.0,0.00020979,4]
[381123757,1756056640138,-150.0,0.00020982,4]
[381123759,1756056640148,-158.3634189,0.00020992,4]
[381123761,1756056640157,-150.0,0.00020997,4]
[381123763,1756056640166,-150.0,0.00020998,4]
[381123765,1756056640176,-640.0,0.00021,10]
[381123766,1756056640185,-150.0,0.00021003,4]
[381123767,1756056640194,-150.0,0.00021011,4]
[381123768,1756056640205,-150.0,0.00021011,4]
[381123769,1756056640215,-158.3634189,0.00021014,4]
[381123770,1756056640225,-150.0,0.00021029,4]
[381123771,1756056640235,-150.0,0.00021035,4]
[381123772,1756056640245,-158.3634189,0.00021035,4]
[381123773,1756056640255,-150.0,0.00021037,4]
[381123774,1756056640264,-150.0,0.00021043,4]
[381123775,1756056640274,-150.0,0.00021049,4]
[381123776,1756056640283,-150.0,0.00021055,4]
[381123777,1756056640292,-158.3634189,0.00021057,4]
[381123778,1756056640303,-150.0,0.00021059,4]
[381123779,1756056640312,-150.0,0.00021061,4]
[381123780,1756056640321,-150.0,0.00021061,4]
[381123781,1756056640331,-150.0,0.00021078,4]
[381123782,1756056640340,-158.3634189,0.00021078,4]
[381123783,1756056640350,-150.0,0.00021088,4]
[381123784,1756056640359,-150.0,0.00021091,4]
[381123785,1756056640368,-150.0,0.00021092,4]
[381123786,1756056640377,-158.3634189,0.000211,4]
[381123787,1756056640388,-609.76141186,0.00021105,2]
[381123788,1756056640398,-150.0,0.00021107,4]
[381123789,1756056640407,-150.0,0.00021112,4]
[381123790,1756056640417,-150.0,0.00021112,4]
[381123791,1756056640430,-150.0,0.00021115,4]
[381123792,1756056640440,-158.3634189,0.00021121,4]
[381123793,1756056640450,-150.0,0.00021124,4]
[381123794,1756056640461,-150.0,0.0002113,4]
[381123795,1756056640472,-150.0,0.00021134,4]
[381123796,1756056640482,-158.3634189,0.00021143,4]
[381123797,1756056640492,-150.0,0.00021145,4]
[381123798,1756056640502,-150.0,0.00021147,4]
[381123799,1756056640511,-150.0,0.00021156,4]
[381123800,1756056640521,-150.0,0.00021159,4]
[381123801,1756056640531,-150.0,0.00021163,4]
[381123802,1756056640540,-158.3634189,0.00021164,4]
[381123803,1756056640549,-150.0,0.00021179,4]
[381123804,1756056640558,-150.0,0.00021182,4]
[381123805,1756056640568,-158.3634189,0.00021186,4]
[381123806,1756056640577,-150.0,0.00021188,4]
[381123807,1756056640587,-150.0,0.00021197,4]
[381123808,1756056640598,-1000.0,0.00021199,2]
[381123809,1756056640607,-150.0,0.00021203,4]
[381123810,1756056640617,-158.3634189,0.00021207,4]
[381123811,1756056640627,-150.0,0.00021211,4]
[381123812,1756056640643,-150.0,0.00021214,4]
[381123813,1756056640652,-150.0,0.00021214,4]
[381123814,1756056640661,-5000.0,0.00021217,2]
[381123815,1756056640671,-283.70498315,0.00021218,2]
[381123816,1756056640680,-150.0,0.0002122,4]
[381123817,1756056640689,-150.0,0.00021222,4]
[381123818,1756056640699,-150.0,0.00021224,4]
[381123819,1756056640709,-158.3634189,0.00021229,4]
[381123820,1756056640718,-150.0,0.0002123,4]
[381123821,1756056640727,-609.76141186,0.00021247,2]
[381123822,1756056640737,-150.0,0.00021248,4]
[381123823,1756056640746,-158.3634189,0.0002125,4]
[381123824,1756056640755,-1000.0,0.00021251,2]
[381123825,1756056640766,-150.0,0.00021251,4]
[381123826,1756056640783,-500.0,0.00021252,2]
[381123827,1756056640795,-150.0,0.00021259,4]
[381123828,1756056640804,-150.0,0.00021263,4]
[381123829,1756056640813,-150.0,0.00021264,4]
[381123830,1756056640822,-150.0,0.0002127,4]
[381123831,1756056640831,-158.3634189,0.00021272,4]
[381123832,1756056640840,-1425.0,0.00021279,2]
[381123833,1756056640849,-381.1359249,0.0002128,2]
[381123834,1756056640858,-150.0,0.00021283,4]
[381123835,1756056640868,-151.0,0.00021289,2]
[381123836,1756056640877,-158.3634189,0.00021294,4]
[381123837,1756056640890,-1000.0,0.0002131,2]
[381123838,1756056640900,-155.78771722,0.00021315,4]
[381123839,1756056640909,-153.86505337,0.00021315,4]
[381123840,1756056640918,-150.10671319,0.00021315,4]
[381123841,1756056640927,-158.3634189,0.00021315,4]
[381123842,1756056640937,-183.71019133,0.00021315,4]
[381123843,1756056640946,-160.99768388,0.00021315,4]
[381123844,1756056640955,-185.21078341,0.00021315,4]
[381123845,1756056640965,-283.22871787,0.00021315,4]
[381123846,1756056640975,-174.25974981,0.00021315,4]
[381123847,1756056640985,-290.00446618,0.00021315,4]
[381123848,1756056640995,-240.70890422,0.00021315,4]
[381123849,1756056641004,-276.46637168,0.00021315,4]
[381123850,1756056641021,-252.37670201,0.00021315,4]
[381123851,1756056641034,-159.61559463,0.00021315,4]
[381123852,1756056641043,-271.66411194,0.00021315,4]
[381123853,1756056641053,-274.82382284,0.00021315,4]
[381123854,1756056641062,-261.68653542,0.00021315,4]
[381123855,1756056641330,-148969.89736779,0.00021317,2]
[381123856,1756056641385,-460.7129759,0.00021317,2]
[381123857,1756056641397,-4270.5086466,0.00021317,2]
[381123858,1756056641408,-1372.65758095,0.00021317,2]
[381123859,1756056641433,-41541.90459698,0.00021317,2]
[381123883,1756056643658,-464.79244305,0.00017727,2]
[381123884,1756056643667,-500.0,0.00017727,2]
[381123885,1756056643676,-255.11531695,0.00017727,2]
[381123886,1756056643700,-100.35666189,0.00017727,2]
[381123887,1756056643709,-411.11197881,0.00017727,2]
[381123888,1756056643719,-500.0,0.00017727,2]
[381123889,1756056643729,-525.23803935,0.00017727,2]
[381123890,1756056643738,-2488.93375195,0.00021317,2]
[381123891,1756056643750,-3175.087504,0.00021317,2]
[381123892,1756056643761,-1060.38762225,0.00021317,2]
[381123893,1756056643787,-4189.31710758,0.00021317,2]
[381123894,1756056643799,-1545.48010783,0.00021317,2]
[381123895,1756056643809,-1180.91989217,0.00021317,2]
[381123896,1756056644578,-32000.0,0.00021317,2]
[381123897,1756056644605,-1357.53,0.00021317,2]
[381123898,1756056644617,-2637.08942357,0.00021317,2]
[381123899,1756056644628,-11640.72938786,0.00021317,2]
[381123900,1756056644644,-3446.73597,0.00021317,2]
[381123925,1756056646338,-411.666703,0.00021317,2]
[381123928,1756056646355,-91470.01154111,0.00021317,2]
[381123929,1756056646366,-440.09656984,0.00021317,2]
[381123930,1756056646399,-194237.8614924,0.00021317,2]
[381123931,1756056647326,-26705.78832907,0.00021217,2]
[381123932,1756056647358,-3385.60831394,0.00021217,2]
[381123933,1756056647368,-24286.72938472,0.00021317,2]
[381123934,1756056647383,-10124.15508468,0.00021317,2]
[381123935,1756056647477,-50885.27218502,0.00021317,2]
[381123936,1756056647488,-4867.50000001,0.00021317,2]
[381123937,1756056648142,-9920.18713768,0.00021317,2]
[381123938,1756056648169,-85000.0,0.00021317,2]
[381123939,1756056648182,-4605.20000002,0.00021317,2]
[381123943,1756056984193,-500.0,0.00011999,2]
[381123989,1756057832035,-163.98,0.00013699,2]
[381124004,1756057832548,-179.68641523,0.00013699,2]
[381124006,1756057832559,-203.0,0.00014112,2]
[381124008,1756057832569,-169.47089326,0.00014526,2]
[381124010,1756057832578,-150.0,0.00014526,2]
[381124012,1756057832587,-300.0,0.00014526,2]
[381124014,1756057832596,-1200.0,0.00014526,2]
[381124016,1756057832605,-56.5126915,0.00014526,2]
[381124018,1756057832617,-123.17372373,0.00014526,2]
[381124020,1756057832628,-179.68641523,0.00014527,2]
[381124022,1756057832638,-224.75986104,0.00014527,2]
[381124023,1756057832650,-267.0519024,0.00014527,2]
[381124024,1756057832694,-495.65599999,0.00014527,2]
[381124025,1756057832783,-1603.65802659,0.00014527,2]
[381124027,1756057832798,-352.74248147,0.00014527,2]
[381124029,1756057832810,-10582.88455481,0.00014527,2]
[381124031,1756057832822,-50836.6546841,0.00014527,2]
[381124033,1756057832833,-347.8010555,0.00014527,2]
[381124035,1756057832846,-3217.81818187,0.00014527,2]
[381124036,1756057832858,-9035.75237052,0.00014527,2]
[381124037,1756057832869,-250.0,0.00015068,2]
[381124038,1756057832879,-203.0,0.00015068,2]
[381124039,1756057832890,-300.0,0.00015068,2]
[381124040,1756057832899,-500.0,0.00016274,2]
[381124041,1756057832909,-400.27322,0.00018,2]
[381124042,1756057832918,-6503.69,0.00018849,2]
[381124043,1756057832927,-150.0,0.00019479,4]
[381124044,1756057832936,-168.0,0.00019675,2]
[381124045,1756057832945,-150.0,0.00019789,4]
[381124046,1756057832960,-671.0,0.00019912,2]
[381124047,1756057832969,-3916.69,0.00019912,2]
[381124048,1756057832978,-500.0,0.00019973,2]
[381124049,1756057832988,-1230.0,0.00020081,2]
[381124050,1756057832997,-150.0,0.00020098,4]
[381124051,1756057833007,-500.0,0.00020098,4]
[381124052,1756057833016,-500.0,0.00020098,4]
[381124053,1756057833025,-500.0,0.00020098,4]
[381124054,1756057833034,-163.98,0.00020187,2]
[381124055,1756057833044,-168.0,0.00020209,2]
[381124056,1756057833054,-454.23902548,0.00020214,2]
[381124057,1756057833064,-451.08236211,0.00020214,2]
[381124058,1756057833074,-442.04883214,0.00020215,2]
[381124059,1756057833084,-444.40860313,0.00020215,2]
[381124060,1756057833094,-456.3770051,0.00020215,2]
[381124061,1756057833104,-446.59239306,0.00020215,2]
[381124062,1756057833114,-442.12766648,0.00020215,2]
[381124063,1756057833124,-445.41651968,0.00020215,2]
[381124064,1756057833134,-453.55425126,0.00020215,2]
[381124065,1756057833143,-445.36959653,0.00020215,2]
[381124066,1756057833153,-168.0,0.00020243,2]
[381124067,1756057833163,-168.0,0.00020386,2]
[381124068,1756057833172,-1000.0,0.000204,2]
[381124069,1756057833181,-150.0,0.00020407,4]
[381124070,1756057833190,-1000.0,0.00020431,2]
[381124071,1756057833200,-666.0,0.00020435,3]
[381124072,1756057833209,-173.67,0.00020478,2]
[381124073,1756057833219,-267.46074303,0.00020535,2]
[381124074,1756057833228,-1439.47591549,0.00020535,2]
[381124075,1756057833237,-999.0,0.00020547,2]
[381124076,1756057833248,-446.21038032,0.00020547,2]
[381124077,1756057833257,-1291.1,0.00020592,2]
[381124078,1756057833266,-1294.93,0.00020592,2]
[381124079,1756057833276,-1297.71,0.00020592,2]
[381124080,1756057833286,-1267.43,0.00020592,2]
[381124081,1756057833295,-212.11701231,0.00020646,2]
[381124082,1756057833305,-322.6107,0.00020651,2]
[381124083,1756057833314,-500.0,0.00020651,2]
[381124084,1756057833323,-695.39793187,0.00020651,2]
[381124085,1756057833332,-160.0,0.00020651,2]
[381124086,1756057833341,-443.39597674,0.00020663,2]
[381124087,1756057833349,-500.0,0.00020706,2]
[381124088,1756057833358,-150.0,0.00020716,4]
[381124089,1756057833367,-168.0,0.00020731,2]
[381124090,1756057833378,-5511.0,0.000208,5]
[381124091,1756057833386,-1580.114,0.0002082,2]
[381124092,1756057833396,-169.856,0.0002082,2]
[381124093,1756057833405,-399.0,0.0002083,2]